fUST/lending_fUST_20250702
["ID","MTS","AMOUNT","RATE_DAILY","PERIOD"]
[368970824,1751417449501,-674.46,0.00019131,2]
[368970825,1751417449510,-460.0,0.00019131,2]
[368970826,1751417449520,-460.0,0.00019131,2]
[368970827,1751417449530,-336.18048237,0.00019131,2]
[368970828,1751417449539,-460.0,0.00019131,2]
[368970829,1751417449549,-876.6,0.00019131,2]
[368970830,1751417449559,-460.0,0.00019131,2]
[368970831,1751417449568,-460.0,0.00019131,2]
[368970832,1751417449579,-555.74,0.00019131,2]
[368970833,1751417449590,-460.0,0.00019131,2]
[368970834,1751417449600,-1412.4,0.00019131,2]
[368970835,1751417449610,-460.0,0.00019131,2]
[368970836,1751417449619,-1422.29,0.00019131,2]
[368970837,1751417449630,-460.0,0.00019131,2]
[368970838,1751417449640,-595.5763155,0.00019131,2]
[368970839,1751417449650,-460.0,0.00019131,2]
[368970840,1751417449659,-1250.11,0.00019131,2]
[368970841,1751417449670,-460.0,0.00019138,2]
[368970842,1751417449680,-460.0,0.00019138,2]
[368970843,1751417449690,-460.0,0.00019138,2]
[368970844,1751417449699,-320.67,0.00019138,2]
[368970845,1751417449709,-264.79724699,0.00019138,2]
[368970846,1751417449718,-460.0,0.00019138,2]
[368970847,1751417449728,-460.0,0.00019138,2]
[368970848,1751417449738,-460.0,0.00019138,2]
[368970849,1751417449750,-460.0,0.00019138,2]
[368970850,1751417449760,-460.0,0.00019138,2]
[368970851,1751417449770,-460.0,0.00019138,2]
[368970852,1751417449786,-460.0,0.00019138,2]
[368970853,1751417449795,-460.0,0.00019138,2]
[368970854,1751417449806,-460.0,0.00019138,2]
[368970855,1751417449815,-421.86133626,0.00019138,2]
[368970856,1751417449826,-460.0,0.00019138,2]
[368970857,1751417449837,-460.0,0.00019138,2]
[368970858,1751417449847,-460.0,0.00019138,2]
[368970859,1751417449858,-490.25,0.00019138,2]
[368970860,1751417449868,-460.0,0.00019138,2]
[368970861,1751417449878,-716.16,0.00019138,2]
[368970862,1751417449889,-460.0,0.00019138,2]
[368970863,1751417449900,-460.0,0.00019138,2]
[368970864,1751417449910,-460.0,0.00019138,2]
[368970865,1751417449920,-460.0,0.00019138,2]
[368970866,1751417449932,-158.56,0.00019138,2]
[368970867,1751417449943,-460.0,0.00019138,2]
[368970868,1751417449952,-591.27,0.00019138,2]
[368970869,1751417449963,-460.0,0.00019138,2]
[368970870,1751417449973,-460.0,0.00019138,2]
[368970871,1751417449984,-460.0,0.00019138,2]
[368970872,1751417449994,-460.0,0.00019138,2]
[368970873,1751417450003,-460.0,0.00019138,2]
[368970874,1751417450013,-460.0,0.00019138,2]
[368970875,1751417450023,-1377.64,0.00019138,2]
[368970876,1751417450034,-460.0,0.00019138,2]
[368970877,1751417450044,-460.0,0.00019138,2]
[368970878,1751417450055,-460.0,0.00019138,2]
[368970879,1751417450065,-460.0,0.00019138,2]
[368970880,1751417450074,-460.0,0.00019138,2]
[368970881,1751417450085,-706.92,0.00019138,2]
[368970882,1751417450094,-176.192718,0.00019178,2]
[368970883,1751417450104,-546.68386571,0.00019279,2]
[368970884,1751417450114,-151.0,0.00019329,2]
[368970885,1751417450124,-48066.52679625,0.00019329,2]
[368970886,1751417450134,-337.81451066,0.00019393,2]
[368970887,1751417450145,-460.0,0.00019405,2]
[368970888,1751417450154,-460.0,0.00019405,2]
[368970889,1751417450164,-1366.21,0.00019405,2]
[368970890,1751417450174,-1111.51,0.00019405,2]
[368970891,1751417450184,-1121.51,0.00019405,2]
[368970892,1751417450195,-460.0,0.00019405,2]
[368970893,1751417450205,-648.19,0.00019405,2]
[368970894,1751417450215,-460.0,0.00019405,2]
[368970895,1751417450226,-460.0,0.00019405,2]
[368970896,1751417450236,-460.0,0.00019405,2]
[368970897,1751417450246,-674.46,0.00019405,2]
[368970898,1751417450256,-460.0,0.00019405,2]
[368970899,1751417450267,-460.0,0.00019405,2]
[368970900,1751417450277,-460.0,0.00019405,2]
[368970901,1751417450287,-876.6,0.00019405,2]
[368970902,1751417450296,-460.0,0.00019405,2]
[368970903,1751417450307,-460.0,0.00019405,2]
[368970904,1751417450316,-555.74,0.00019405,2]
[368970905,1751417450326,-460.0,0.00019405,2]
[368970906,1751417450335,-1412.4,0.00019405,2]
[368970907,1751417450423,-460.0,0.00019405,2]
[368970908,1751417450433,-1422.29,0.00019405,2]
[368970909,1751417450444,-460.0,0.00019405,2]
[368970910,1751417450454,-575.53,0.00019405,2]
[368970911,1751417450464,-1250.11,0.00019405,2]
[368970912,1751417450474,-508.17,0.00019412,2]
[368970913,1751417450484,-460.0,0.00019412,2]
[368970914,1751417450495,-460.0,0.00019412,2]
[368970915,1751417450504,-460.0,0.00019412,2]
[368970916,1751417450514,-460.0,0.00019412,2]
[368970917,1751417450525,-460.0,0.00019412,2]
[368970918,1751417450536,-460.0,0.00019412,2]
[368970919,1751417450548,-460.0,0.00019412,2]
[368970920,1751417450558,-460.0,0.00019412,2]
[368970921,1751417450567,-460.0,0.00019412,2]
[368970922,1751417450577,-460.0,0.00019412,2]
[368970923,1751417450588,-460.0,0.00019412,2]
[368970924,1751417450600,-490.25,0.00019412,2]
[368970925,1751417450610,-460.0,0.00019412,2]
[368970926,1751417450620,-716.16,0.00019412,2]
[368970927,1751417450630,-460.0,0.00019412,2]
[368970928,1751417450640,-460.0,0.00019412,2]
[368970929,1751417450650,-460.0,0.00019412,2]
[368970930,1751417450660,-460.0,0.00019412,2]
[368970931,1751417450670,-282.94,0.00019412,2]
[368970932,1751417450680,-591.27,0.00019412,2]
[368970933,1751417450690,-460.0,0.00019412,2]
[368970934,1751417450700,-460.0,0.00019412,2]
[368970935,1751417450710,-460.0,0.00019412,2]
[368970936,1751417450720,-460.0,0.00019412,2]
[368970937,1751417450730,-460.0,0.00019412,2]
[368970938,1751417450740,-460.0,0.00019412,2]
[368970939,1751417450751,-1377.64,0.00019412,2]
[368970940,1751417450760,-460.0,0.00019412,2]
[368970941,1751417450771,-460.0,0.00019412,2]
[368970942,1751417450784,-460.0,0.00019412,2]
[368970943,1751417450794,-470.21734487,0.00019412,2]
[368970944,1751417450805,-460.0,0.00019412,2]
[368970945,1751417450824,-706.92,0.00019412,2]
[368970946,1751417450839,-546.68386571,0.00019555,2]
[368970947,1751417450849,-1500.0,0.00019664,2]
[368970948,1751417450860,-460.0,0.00019679,2]
[368970949,1751417450870,-460.0,0.00019679,2]
[368970950,1751417450879,-1366.21,0.00019679,2]
[368970951,1751417450889,-1111.51,0.00019679,2]
[368970952,1751417450899,-1121.51,0.00019679,2]
[368970953,1751417450909,-460.0,0.00019679,2]
[368970954,1751417450919,-648.19,0.00019679,2]
[368970955,1751417450928,-460.0,0.00019679,2]
[368970956,1751417450938,-460.0,0.00019679,2]
[368970957,1751417450949,-460.0,0.00019679,2]
[368970958,1751417450959,-674.46,0.00019679,2]
[368970959,1751417450968,-460.0,0.00019679,2]
[368970960,1751417450978,-460.0,0.00019679,2]
[368970961,1751417450988,-460.0,0.00019679,2]
[368970962,1751417450999,-876.6,0.00019679,2]
[368970963,1751417451008,-460.0,0.00019679,2]
[368970964,1751417451018,-460.0,0.00019679,2]
[368970965,1751417451028,-555.74,0.00019679,2]
[368970966,1751417451038,-460.0,0.00019679,2]
[368970967,1751417451047,-1412.4,0.00019679,2]
[368970968,1751417451057,-460.0,0.00019679,2]
[368970969,1751417451068,-1422.29,0.00019679,2]
[368970970,1751417451078,-460.0,0.00019679,2]
[368970971,1751417451088,-1250.11,0.00019679,2]
[368970972,1751417451098,-500.0,0.00019685,2]
[368970973,1751417451107,-151.0,0.00019686,2]
[368970974,1751417451117,-151.0,0.00019686,2]
[368970975,1751417451126,-151.0,0.00019686,2]
[368970976,1751417451136,-460.0,0.00019686,2]
[368970977,1751417451146,-460.0,0.00019686,2]
[368970978,1751417451156,-460.0,0.00019686,2]
[368970979,1751417451166,-460.0,0.00019686,2]
[368970980,1751417451175,-460.0,0.00019686,2]
[368970981,1751417451186,-585.58247671,0.00019686,2]
[368970982,1751417451196,-460.0,0.00019686,2]
[368970983,1751417451206,-460.0,0.00019686,2]
[368970984,1751417451216,-460.0,0.00019686,2]
[368970985,1751417451226,-490.25,0.00019686,2]
[368970986,1751417451236,-716.16,0.00019686,2]
[368970987,1751417451245,-460.0,0.00019686,2]
[368970988,1751417451255,-460.0,0.00019686,2]
[368970989,1751417451265,-460.0,0.00019686,2]
[368970990,1751417451275,-460.0,0.00019686,2]
[368970991,1751417451285,-591.27,0.00019686,2]
[368970992,1751417451294,-460.0,0.00019686,2]
[368970993,1751417451304,-460.0,0.00019686,2]
[368970994,1751417451313,-460.0,0.00019686,2]
[368970995,1751417451323,-460.0,0.00019686,2]
[368970996,1751417451333,-460.0,0.00019686,2]
[368970997,1751417451344,-460.0,0.00019686,2]
[368970998,1751417451353,-1377.64,0.00019686,2]
[368970999,1751417451363,-460.0,0.00019686,2]
[368971000,1751417451372,-460.0,0.00019686,2]
[368971001,1751417451382,-460.0,0.00019686,2]
[368971002,1751417451392,-706.92,0.00019686,2]
[368971003,1751417451402,-168.0,0.000198,2]
[368971004,1751417451411,-168.0,0.000198,2]
[368971005,1751417451422,-168.0,0.000198,2]
[368971006,1751417451431,-168.0,0.000198,2]
[368971007,1751417451441,-546.68386571,0.00019831,2]
[368971008,1751417451451,-1366.21,0.00019953,2]
[368971009,1751417451460,-1111.51,0.00019953,2]
[368971010,1751417451470,-1121.51,0.00019953,2]
[368971011,1751417451479,-460.0,0.00019953,2]
[368971012,1751417451489,-648.19,0.00019953,2]
[368971013,1751417451499,-398.57,0.00019953,2]
[368971014,1751417451509,-460.0,0.00019953,2]
[368971015,1751417451519,-460.0,0.00019953,2]
[368971016,1751417451529,-674.46,0.00019953,2]
[368971017,1751417451539,-460.0,0.00019953,2]
[368971018,1751417451549,-460.0,0.00019953,2]
[368971019,1751417451558,-460.0,0.00019953,2]
[368971020,1751417451568,-876.6,0.00019953,2]
[368971021,1751417451577,-460.0,0.00019953,2]
[368971022,1751417451587,-460.0,0.00019953,2]
[368971023,1751417451596,-555.74,0.00019953,2]
[368971024,1751417451676,-460.0,0.00019953,2]
[368971025,1751417451686,-1412.4,0.00019953,2]
[368971026,1751417451696,-460.0,0.00019953,2]
[368971027,1751417451706,-1422.29,0.00019953,2]
[368971028,1751417451716,-460.0,0.00019953,2]
[368971029,1751417451725,-1250.11,0.00019953,2]
[368971030,1751417451735,-460.0,0.0001996,2]
[368971031,1751417451745,-460.0,0.0001996,2]
[368971032,1751417451755,-460.0,0.0001996,2]
[368971033,1751417451764,-460.0,0.0001996,2]
[368971034,1751417451775,-151.0,0.0001996,2]
[368971035,1751417451788,-460.0,0.0001996,2]
[368971036,1751417451797,-460.0,0.0001996,2]
[368971037,1751417451807,-460.0,0.0001996,2]
[368971038,1751417451818,-460.0,0.0001996,2]
[368971039,1751417451828,-490.25,0.0001996,2]
[368971040,1751417451837,-716.16,0.0001996,2]
[368971041,1751417451847,-308.79,0.0001996,2]
[368971042,1751417451857,-163.09,0.0001996,2]
[368971043,1751417451868,-460.0,0.0001996,2]
[368971044,1751417451878,-460.0,0.0001996,2]
[368971045,1751417451888,-591.27,0.0001996,2]
[368971046,1751417451898,-556.33,0.0001996,2]
[368971047,1751417451908,-151.0,0.0001996,2]
[368971048,1751417451918,-460.0,0.0001996,2]
[368971049,1751417451927,-460.0,0.0001996,2]
[368971050,1751417451937,-460.0,0.0001996,2]
[368971051,1751417451948,-460.0,0.0001996,2]
[368971052,1751417451958,-1377.64,0.0001996,2]
[368971053,1751417451968,-460.0,0.0001996,2]
[368971054,1751417451979,-706.92,0.0001996,2]
[368971055,1751417451988,-546.68386571,0.00020107,2]
[368971056,1751417451999,-1366.21,0.00020227,2]
[368971057,1751417452008,-1111.51,0.00020227,2]
[368971058,1751417452018,-1121.51,0.00020227,2]
[368971059,1751417452027,-460.0,0.00020227,2]
[368971060,1751417452037,-648.19,0.00020227,2]
[368971061,1751417452047,-460.0,0.00020227,2]
[368971062,1751417452056,-674.46,0.00020227,2]
[368971063,1751417452065,-460.0,0.00020227,2]
[368971064,1751417452075,-596.35,0.00020227,2]
[368971065,1751417452084,-876.6,0.00020227,2]
[368971066,1751417452094,-267.40314111,0.00020227,2]
[368971067,1751417452104,-460.0,0.00020227,2]
[368971068,1751417452113,-555.74,0.00020227,2]
[368971069,1751417452123,-460.0,0.00020227,2]
[368971070,1751417452132,-1412.4,0.00020227,2]
[368971071,1751417452142,-460.0,0.00020227,2]
[368971072,1751417452151,-1422.29,0.00020227,2]
[368971073,1751417452161,-460.0,0.00020227,2]
[368971074,1751417452171,-1250.11,0.00020227,2]
[368971075,1751417452180,-482.64,0.00020234,2]
[368971076,1751417452191,-460.0,0.00020234,2]
[368971077,1751417452200,-460.0,0.00020234,2]
[368971078,1751417452210,-460.0,0.00020234,2]
[368971079,1751417452219,-460.0,0.00020234,2]
[368971080,1751417452228,-460.0,0.00020234,2]
[368971081,1751417452238,-490.25,0.00020234,2]
[368971082,1751417452247,-716.16,0.00020234,2]
[368971083,1751417452257,-460.0,0.00020234,2]
[368971084,1751417452267,-591.27,0.00020234,2]
[368971085,1751417452276,-460.0,0.00020234,2]
[368971086,1751417452286,-392.82,0.00020234,2]
[368971087,1751417452296,-460.0,0.00020234,2]
[368971088,1751417452306,-460.0,0.00020234,2]
[368971089,1751417452315,-1377.64,0.00020234,2]
[368971090,1751417452326,-460.0,0.00020234,2]
[368971091,1751417452336,-706.92,0.00020234,2]
[368971092,1751417452346,-546.68386571,0.00020383,3]
[368971093,1751417452355,-1366.21,0.00020501,2]
[368971094,1751417452365,-1111.51,0.00020501,2]
[368971095,1751417452374,-1121.51,0.00020501,2]
[368971096,1751417452383,-320.31860826,0.00020501,2]
[368971097,1751417452393,-648.19,0.00020501,2]
[368971098,1751417452403,-244.8,0.00020501,2]
[368971099,1751417452413,-674.46,0.00020501,2]
[368971100,1751417452423,-505.19,0.00020501,2]
[368971101,1751417452432,-876.6,0.00020501,2]
[368971102,1751417452442,-460.0,0.00020501,2]
[368971103,1751417452451,-555.74,0.00020501,2]
[368971104,1751417452461,-460.0,0.00020501,2]
[368971105,1751417452470,-1412.4,0.00020501,2]
[368971106,1751417452480,-460.0,0.00020501,2]
[368971107,1751417452490,-1422.29,0.00020501,2]
[368971108,1751417452499,-460.0,0.00020501,2]
[368971109,1751417452509,-460.0,0.00020508,2]
[368971110,1751417452519,-460.0,0.00020508,2]
[368971111,1751417452528,-460.0,0.00020508,2]
[368971112,1751417452538,-460.0,0.00020508,2]
[368971113,1751417452548,-460.0,0.00020508,2]
[368971114,1751417452558,-490.25,0.00020508,2]
[368971115,1751417452567,-716.16,0.00020508,2]
[368971116,1751417452577,-460.0,0.00020508,2]
[368971117,1751417452588,-591.27,0.00020508,2]
[368971118,1751417452597,-460.0,0.00020508,2]
[368971119,1751417452607,-460.0,0.00020508,2]
[368971120,1751417452616,-460.0,0.00020508,2]
[368971121,1751417452626,-1377.64,0.00020508,2]
[368971122,1751417452636,-460.0,0.00020508,2]
[368971123,1751417452645,-706.92,0.00020508,2]
[368971124,1751417452655,-337.81451066,0.00020535,2]
[368971125,1751417452664,-546.68386571,0.00020659,3]
[368971126,1751417452676,-277.384,0.00020665,2]
[368971127,1751417452686,-1366.21,0.00020775,2]
[368971128,1751417452695,-1111.51,0.00020775,2]
[368971129,1751417452704,-1121.51,0.00020775,2]
[368971130,1751417452715,-648.19,0.00020775,2]
[368971131,1751417452725,-674.46,0.00020775,2]
[368971132,1751417452802,-876.6,0.00020775,2]
[368971133,1751417452811,-460.0,0.00020775,2]
[368971134,1751417452821,-555.74,0.00020775,2]
[368971135,1751417452833,-1412.4,0.00020775,2]
[368971136,1751417452842,-460.0,0.00020775,2]
[368971137,1751417452852,-1422.29,0.00020775,2]
[368971138,1751417452862,-460.0,0.00020775,2]
[368971139,1751417452872,-208.7,0.00020782,2]
[368971140,1751417452882,-460.0,0.00020782,2]
[368971141,1751417452891,-460.0,0.00020782,2]
[368971142,1751417452901,-460.0,0.00020782,2]
[368971143,1751417452910,-460.0,0.00020782,2]
[368971144,1751417452920,-490.25,0.00020782,2]
[368971145,1751417452929,-716.16,0.00020782,2]
[368971146,1751417452939,-460.0,0.00020782,2]
[368971147,1751417452949,-591.27,0.00020782,2]
[368971148,1751417452958,-460.0,0.00020782,2]
[368971149,1751417452968,-460.0,0.00020782,2]
[368971150,1751417452978,-460.0,0.00020782,2]
[368971151,1751417452987,-1377.64,0.00020782,2]
[368971152,1751417452997,-460.0,0.00020782,2]
[368971153,1751417453006,-706.92,0.00020782,2]
[368971154,1751417453016,-546.68386571,0.00020934,4]
[368971155,1751417453025,-461.9,0.00021,2]
[368971156,1751417453035,-193.9658982,0.00021,2]
[368971157,1751417453044,-151.31756435,0.00021,2]
[368971158,1751417453053,-151.0,0.00021,2]
[368971159,1751417453062,-1366.21,0.00021049,2]
[368971160,1751417453072,-1111.51,0.00021049,2]
[368971161,1751417453082,-1121.51,0.00021049,2]
[368971162,1751417453091,-648.19,0.00021049,2]
[368971163,1751417453102,-674.46,0.00021049,2]
[368971164,1751417453112,-876.6,0.00021049,2]
[368971165,1751417453121,-460.0,0.00021049,2]
[368971166,1751417453131,-555.74,0.00021049,2]
[368971167,1751417453141,-1412.4,0.00021049,2]
[368971168,1751417453151,-460.0,0.00021049,2]
[368971169,1751417453161,-1422.29,0.00021049,2]
[368971170,1751417453170,-460.0,0.00021049,2]
[368971171,1751417453180,-460.0,0.00021056,2]
[368971172,1751417453189,-460.0,0.00021056,2]
[368971173,1751417453199,-460.0,0.00021056,2]
[368971174,1751417453208,-438.96,0.00021056,2]
[368971175,1751417453218,-490.25,0.00021056,2]
[368971176,1751417453227,-716.16,0.00021056,2]
[368971177,1751417453238,-460.0,0.00021056,2]
[368971178,1751417453248,-591.27,0.00021056,2]
[368971179,1751417453258,-460.0,0.00021056,2]
[368971180,1751417453267,-460.0,0.00021056,2]
[368971181,1751417453277,-574.25878253,0.00021056,2]
[368971182,1751417453287,-1377.64,0.00021056,2]
[368971183,1751417453296,-460.0,0.00021056,2]
[368971184,1751417453305,-706.92,0.00021056,2]
[368971185,1751417453315,-546.68386571,0.0002121,4]
[368971186,1751417453325,-1366.21,0.00021323,2]
[368971187,1751417453334,-1111.51,0.00021323,2]
[368971188,1751417453343,-1121.51,0.00021323,2]
[368971189,1751417453353,-648.19,0.00021323,2]
[368971190,1751417453363,-674.46,0.00021323,2]
[368971191,1751417453373,-876.6,0.00021323,2]
[368971192,1751417453383,-460.0,0.00021323,2]
[368971193,1751417453393,-555.74,0.00021323,2]
[368971194,1751417453403,-1412.4,0.00021323,2]
[368971195,1751417453412,-460.0,0.00021323,2]
[368971196,1751417453422,-1422.29,0.00021323,2]
[368971197,1751417453432,-460.0,0.00021323,2]
[368971198,1751417453442,-484.13,0.0002133,2]
[368971199,1751417453451,-460.0,0.0002133,2]
[368971200,1751417453461,-460.0,0.0002133,2]
[368971201,1751417453471,-490.25,0.0002133,2]
[368971202,1751417453480,-716.16,0.0002133,2]
[368971203,1751417453490,-273.45,0.0002133,2]
[368971204,1751417453500,-591.27,0.0002133,2]
[368971205,1751417453510,-377.68,0.0002133,2]
[368971206,1751417453521,-460.0,0.0002133,2]
[368971207,1751417453531,-1377.64,0.0002133,2]
[368971208,1751417453542,-460.0,0.0002133,2]
[368971209,1751417453552,-706.92,0.0002133,2]
[368971210,1751417453562,-546.68386571,0.00021486,5]
[368971211,1751417453571,-500.0,0.00021499,2]
[368971212,1751417453581,-1366.21,0.00021597,2]
[368971213,1751417453590,-1111.51,0.00021597,2]
[368971214,1751417453600,-1121.51,0.00021597,2]
[368971215,1751417453610,-648.19,0.00021597,2]
[368971216,1751417453619,-674.46,0.00021597,2]
[368971217,1751417453629,-876.6,0.00021597,2]
[368971218,1751417453638,-191.49960313,0.00021597,2]
[368971219,1751417453648,-555.74,0.00021597,2]
[368971220,1751417453659,-1412.4,0.00021597,2]
[368971221,1751417453668,-460.0,0.00021597,2]
[368971222,1751417453679,-1422.29,0.00021597,2]
[368971223,1751417453689,-460.0,0.00021597,2]
[368971224,1751417453699,-514.42,0.00021604,2]
[368971225,1751417453708,-460.0,0.00021604,2]
[368971226,1751417453719,-490.25,0.00021604,2]
[368971227,1751417453729,-716.16,0.00021604,2]
[368971228,1751417453738,-591.27,0.00021604,2]
[368971229,1751417453749,-460.0,0.00021604,2]
[368971230,1751417453759,-1377.64,0.00021604,2]
[368971231,1751417453835,-460.0,0.00021604,2]
[368971232,1751417453845,-706.92,0.00021604,2]
[368971233,1751417453857,-337.81451066,0.00021677,2]
[368971234,1751417453868,-546.68386571,0.00021762,5]
[368971235,1751417453877,-1366.21,0.00021871,2]
[368971236,1751417453886,-1111.51,0.00021871,2]
[368971237,1751417453896,-1121.51,0.00021871,2]
[368971238,1751417453905,-648.19,0.00021871,2]
[368971239,1751417453915,-674.46,0.00021871,2]
[368971240,1751417453925,-876.6,0.00021871,2]
[368971241,1751417453934,-555.74,0.00021871,2]
[368971242,1751417453945,-1412.4,0.00021871,2]
[368971243,1751417453955,-460.0,0.00021871,2]
[368971244,1751417453966,-1422.29,0.00021871,2]
[368971245,1751417453978,-460.0,0.00021871,2]
[368971246,1751417453988,-460.0,0.00021878,2]
[368971247,1751417454000,-490.25,0.00021878,2]
[368971248,1751417454009,-716.16,0.00021878,2]
[368971249,1751417454019,-591.27,0.00021878,2]
[368971250,1751417454028,-460.0,0.00021878,2]
[368971251,1751417454038,-1377.64,0.00021878,2]
[368971252,1751417454049,-460.0,0.00021878,2]
[368971253,1751417454058,-706.92,0.00021878,2]
[368971254,1751417454069,-300.0,0.00021917,2]
[368971255,1751417454079,-207.4,0.00021926,2]
[368971256,1751417454091,-5077.40232827,0.00021926,2]
[368971257,1751417454101,-500.0,0.00021926,2]
[368971258,1751417454112,-500.0,0.00021926,2]
[368971259,1751417454123,-352.97,0.00022,7]
[368971260,1751417454134,-9641.88,0.00022,2]
[368971261,1751417454144,-546.68386571,0.00022038,6]
[368971262,1751417454153,-1366.21,0.00022145,2]
[368971263,1751417454164,-1111.51,0.00022145,2]
[368971264,1751417454174,-1121.51,0.00022145,2]
[368971265,1751417454185,-648.19,0.00022145,2]
[368971266,1751417454196,-674.46,0.00022145,2]
[368971267,1751417454205,-876.6,0.00022145,2]
[368971268,1751417454215,-555.74,0.00022145,2]
[368971269,1751417454225,-1412.4,0.00022145,2]
[368971270,1751417454234,-460.0,0.00022145,2]
[368971271,1751417454245,-1422.29,0.00022145,2]
[368971272,1751417454255,-460.0,0.00022145,2]
[368971273,1751417454265,-460.0,0.00022152,2]
[368971274,1751417454275,-490.25,0.00022152,2]
[368971275,1751417454285,-716.16,0.00022152,2]
[368971276,1751417454304,-591.27,0.00022152,2]
[368971277,1751417454323,-460.0,0.00022152,2]
[368971278,1751417454344,-1377.64,0.00022152,2]
[368971279,1751417454366,-460.0,0.00022152,2]
[368971280,1751417454386,-706.92,0.00022152,2]
[368971281,1751417454403,-168.0,0.000223,14]
[368971282,1751417454424,-168.0,0.000223,14]
[368971283,1751417454440,-168.0,0.000223,12]
[368971284,1751417454458,-168.0,0.000223,12]
[368971285,1751417454479,-168.0,0.000223,12]
[368971286,1751417454501,-168.0,0.000223,13]
[368971287,1751417454514,-168.0,0.000223,13]
[368971288,1751417454534,-168.0,0.000223,12]
[368971289,1751417454550,-168.0,0.000223,13]
[368971290,1751417454568,-546.68386571,0.00022314,7]
[368971291,1751417454582,-3354.99,0.000224,7]
[368971292,1751417454600,-1366.21,0.00022419,2]
[368971293,1751417454616,-1111.51,0.00022419,2]
[368971294,1751417454634,-1121.51,0.00022419,2]
[368971295,1751417454651,-648.19,0.00022419,2]
[368971296,1751417454668,-674.46,0.00022419,2]
[368971297,1751417454683,-876.6,0.00022419,2]
[368971298,1751417454699,-555.74,0.00022419,2]
[368971299,1751417454715,-1412.4,0.00022419,2]
[368971300,1751417454730,-460.0,0.00022419,2]
[368971301,1751417454745,-1422.29,0.00022419,2]
[368971302,1751417454761,-608.6062062,0.00022419,2]
[368971303,1751417454775,-460.0,0.00022426,2]
[368971304,1751417454793,-490.25,0.00022426,2]
[368971305,1751417454808,-716.16,0.00022426,2]
[368971306,1751417454825,-591.27,0.00022426,2]
[368971307,1751417454841,-460.0,0.00022426,2]
[368971308,1751417454857,-1377.64,0.00022426,2]
[368971309,1751417454873,-188.08,0.00022426,2]
[368971310,1751417454888,-706.92,0.00022426,2]
[368971311,1751417454902,-160.0,0.00022568,3]
[368971312,1751417454919,-546.68386571,0.0002259,7]
[368971313,1751417454934,-176.192718,0.00022603,2]
[368971314,1751417454952,-1366.21,0.00022693,2]
[368971315,1751417454963,-1111.51,0.00022693,2]
[368971316,1751417454972,-1121.51,0.00022693,2]
[368971317,1751417454982,-648.19,0.00022693,2]
[368971318,1751417454992,-674.46,0.00022693,2]
[368971319,1751417455002,-876.6,0.00022693,2]
[368971320,1751417455011,-555.74,0.00022693,2]
[368971321,1751417455020,-1412.4,0.00022693,2]
[368971322,1751417455165,-460.0,0.00022693,2]
[368971323,1751417455180,-1422.29,0.00022693,2]